bitfinex/quotes_SOLUSD_20260228
["timestamp","ask_amount","ask_price","bid_price","bid_amount"]
[1772306395301,12.91298892,81.698,81.671,4.37085951]
[1772306396580,12.91298892,81.698,81.672,12.24409834]
[1772306396787,4.41005294,81.696,81.672,12.24409834]
[1772306397593,4.41005294,81.696,81.673,4.37085951]
[1772306398393,12.91298892,81.698,81.673,4.37085951]
[1772306398697,12.91298892,81.698,81.675,4.37085951]
[1772306400895,4.41005294,81.679,81.638,4.37085951]
[1772306401097,4.41005294,81.669,81.63,16.48564028]
[1772306401279,4.41005294,81.659,81.63,0.4539627]
[1772306401473,4.41005294,81.669,81.632,4.37085951]
[1772306401697,4.41005294,81.668,81.632,4.37085951]
[1772306403391,4.41005294,81.659,81.631,12.25024806]
[1772306403592,4.41005294,81.659,81.63,0.4539627]
[1772306403988,4.41005294,81.649,81.613,4.37085951]
[1772306404597,4.41005294,81.649,81.614,47.25565868]
[1772306404773,4.41005294,81.666,81.64,16.03167758]
[1772306404974,4.41005294,81.666,81.631,4.37085951]
[1772306405379,1.22061372,81.669,81.615,4.37085951]
[1772306405380,4.41005294,81.659,81.615,4.37085951]
[1772306405587,4.41005294,81.659,81.616,4.37085951]
[1772306406201,4.28762294,81.659,81.616,4.37085951]
[1772306406404,16.03167758,81.65,81.616,4.37085951]
[1772306407003,42.85801751,81.665,81.621,4.37085951]
[1772306407004,16.03167758,81.66,81.621,4.37085951]
[1772306407383,16.03167758,81.66,81.622,42.88059591]
[1772306407582,12.78298892,81.672,81.641,4.37085951]
[1772306407789,12.78298892,81.672,81.651,4.37085951]
[1772306408286,17.19304186,81.672,81.641,4.37085951]
[1772306408488,12.78298892,81.672,81.641,4.37085951]
[1772306408797,12.78298892,81.672,81.651,4.37085951]
[1772306409607,12.78298892,81.672,81.652,16.61795694]
[1772306409783,12.78298892,81.672,81.653,4.37085951]
[1772306410800,4.41005294,81.68,81.653,4.37085951]
[1772306411387,4.41005294,81.688,81.653,4.37085951]
[1772306411687,4.41005294,81.688,81.655,4.37085951]
[1772306412102,4.41005294,81.687,81.655,4.37085951]
[1772306412784,4.41005294,81.686,81.655,4.37085951]
[1772306415086,4.41005294,81.686,81.657,4.37085951]
[1772306417002,4.31061606,81.694,81.661,4.37840722]
[1772306417201,4.31061606,81.694,81.663,4.37840722]
[1772306417509,22.46637967,81.7,81.671,4.37840722]
[1772306418905,22.46637967,81.7,81.673,4.37840722]
[1772306419304,4.31061606,81.699,81.673,4.37840722]
[1772306420800,16.55066795,81.699,81.674,12.24379851]
[1772306421013,4.31061606,81.698,81.67,12.24439012]
[1772306422309,4.31061606,81.698,81.67,4.37840722]
[1772306424807,10.22639114,81.7,81.672,4.37840722]
[1772306426806,14.5370072,81.7,81.673,16.62235564]
[1772306426991,14.5370072,81.7,81.674,4.37840722]
[1772306428810,14.5370072,81.7,81.676,4.37840722]
[1772306430313,4.31061606,81.699,81.676,4.37840722]
[1772306430910,4.31061606,81.699,81.677,12.2433488]
[1772306431306,4.31061606,81.699,81.677,47.23012802]
[1772306431614,4.31061606,81.699,81.677,16.62175602]
[1772306432416,4.31061606,81.698,81.67,4.37840722]
[1772306433116,4.31061606,81.698,81.672,4.37840722]
[1772306434215,4.31061606,81.696,81.672,4.37840722]
[1772306435718,4.31061606,81.696,81.673,16.62235564]
[1772306436019,4.31061606,81.696,81.674,4.37840722]
[1772306437299,4.31061606,81.696,81.676,4.37840722]
[1772306437500,4.31061606,81.702,81.676,4.37840722]
[1772306438323,1.22061372,81.709,81.691,4.37840722]
[1772306438513,4.31061606,81.721,81.691,4.37840722]
[1772306438822,4.31061606,81.719,81.691,4.37840722]
[1772306439411,4.31061606,81.717,81.691,4.37840722]
[1772306439722,4.31061606,81.715,81.691,4.37840722]
[1772306440920,4.31061606,81.709,81.677,4.37840722]
[1772306441925,4.31061606,81.709,81.679,4.37840722]
[1772306442523,4.31061606,81.707,81.679,4.37840722]
[1772306442924,4.31061606,81.705,81.673,16.62224573]
[1772306443118,4.31061606,81.703,81.673,12.24383851]
[1772306443327,4.31061606,81.703,81.674,4.37840722]
[1772306444022,4.31061606,81.703,81.676,4.37840722]
[1772306446728,4.31061606,81.703,81.678,4.06921976]
[1772306447834,4.29456822,81.701,81.671,4.06921976]
[1772306448213,4.29456822,81.689,81.651,4.06921976]
[1772306448521,1.22061372,81.7,81.651,4.06921976]
[1772306448522,4.29456822,81.679,81.651,4.06921976]
[1772306448711,16.04163652,81.67,81.632,4.06921976]
[1772306448915,4.29456822,81.669,81.632,4.06921976]
[1772306449109,16.04163652,81.66,81.632,4.06921976]
[1772306449324,4.29456822,81.659,81.632,4.06921976]
[1772306450139,4.29456822,81.649,81.623,4.06921976]
[1772306450539,4.29456822,81.649,81.613,4.06921976]
[1772306450916,4.29456822,81.647,81.614,4.06921976]
[1772306451714,4.29456822,81.647,81.613,12.25294989]
[1772306451919,4.29456822,81.647,81.614,4.06921976]
[1772306453224,9.408415,81.669,81.631,4.06921976]
[1772306453430,4.29456822,81.667,81.631,4.06921976]
[1772306454529,4.29456822,81.659,81.62,16.04163652]
[1772306454727,4.29456822,81.659,81.62,20.11085628]
[1772306454928,4.29456822,81.659,81.62,4.06921976]
[1772306455334,4.29456822,81.649,81.613,4.06921976]
[1772306456336,12.24769743,81.648,81.614,12.25279976]
[1772306456545,4.29456822,81.647,81.614,16.32201952]
[1772306456839,4.29456822,81.647,81.615,4.06921976]
[1772306458529,4.29456822,81.647,81.617,4.06921976]
[1772306459549,1.22061372,81.657,81.606,12.25400093]
[1772306459550,4.29456822,81.645,81.606,12.25400093]
[1772306460030,4.29456822,81.645,81.606,16.32322069]
[1772306460230,4.29456822,81.645,81.611,4.06921976]
[1772306460429,4.29456822,81.643,81.613,4.06921976]
[1772306460833,5.51518194,81.675,81.631,4.06921976]
[1772306461032,4.29456822,81.682,81.651,4.06921976]
[1772306461245,12.24461709,81.669,81.651,4.06921976]
[1772306461444,12.24399324,81.673,81.651,4.06921976]
[1772306461637,4.29456822,81.674,81.651,4.06921976]
[1772306462249,0.52084678,81.665,81.652,4.06921976]
[1772306462950,0.52084678,81.665,81.652,16.31623969]
[1772306463352,0.52084678,81.665,81.652,12.24701993]
[1772306465162,1.22061372,81.684,81.661,4.06921976]
[1772306465332,4.29456822,81.706,81.671,4.06921976]
[1772306465532,4.29456822,81.706,81.681,4.06921976]
[1772306465841,4.29456822,81.706,81.66,16.04163652]
[1772306466036,4.29456822,81.706,81.67,16.04163652]
[1772306466239,42.830221,81.718,81.69,16.04163652]
[1772306466240,4.29456822,81.717,81.69,16.04163652]
[1772306466451,4.29456822,81.717,81.688,4.06921976]
[1772306466652,4.29456822,81.717,81.68,20.11085628]
[1772306466847,4.29456822,81.717,81.69,16.04163652]
[1772306467142,16.53207372,81.716,81.691,12.24125056]
[1772306467344,4.29456822,81.715,81.691,12.24125056]
[1772306467650,4.29456822,81.715,81.682,16.3118191]
[1772306468335,4.29456822,81.715,81.681,12.24274923]
[1772306468847,4.29456822,81.715,81.681,16.31196899]
[1772306469549,4.29456822,81.713,81.681,16.31196899]
[1772306469732,4.29456822,81.713,81.69,16.04163652]
[1772306470633,4.01667742,81.719,81.691,4.06921976]
[1772306470830,4.01667742,81.719,81.69,16.04163652]
[1772306470831,4.29456822,81.718,81.683,4.06921976]
[1772306471035,4.29456822,81.718,81.69,16.04163652]
[1772306471638,4.29456822,81.717,81.691,12.24125056]
[1772306472147,4.29456822,81.717,81.681,4.06921976]
[1772306472355,4.29456822,81.717,81.69,20.11085628]
[1772306472548,4.29456822,81.717,81.691,4.06921976]
[1772306473054,4.29456822,81.717,81.69,16.04163652]
[1772306473435,16.53192397,81.717,81.69,16.04163652]
[1772306473757,4.29456822,81.716,81.691,12.24125056]
[1772306476156,4.29456822,81.714,81.684,12.24229959]
[1772306476536,4.32134468,81.709,81.671,12.24424826]
[1772306476855,4.32134468,81.718,81.691,4.29644009]
[1772306477957,4.32134468,81.716,81.691,16.53756278]
[1772306478352,4.01667742,81.719,81.692,4.29644009]
[1772306478651,12.237206,81.718,81.692,4.29644009]
[1772306478956,8.3380221,81.719,81.692,4.29644009]
[1772306479343,4.32134468,81.718,81.692,4.29644009]
[1772306480637,4.32134468,81.718,81.693,12.24095087]
[1772306481041,4.32134468,81.718,81.694,4.29644009]
[1772306481755,4.32134468,81.718,81.695,12.2406512]
[1772306484755,4.01667742,81.719,81.696,4.29644009]
[1772306484947,4.01667742,81.719,81.701,4.29644009]
[1772306485258,4.32134468,81.731,81.701,4.29644009]
[1772306486968,4.32134468,81.731,81.702,12.23960245]
[1772306487141,4.32134468,81.731,81.703,4.29644009]
[1772306487760,4.32134468,81.729,81.703,4.29644009]
[1772306489343,4.32134468,81.729,81.704,12.23930284]
[1772306490463,4.32134468,81.709,81.665,4.29644009]
[1772306490662,4.32134468,81.699,81.66,5.98465275]
[1772306490864,4.32134468,81.669,81.632,42.875343]
[1772306491037,4.32134468,81.669,81.633,4.29644009]
[1772306491362,4.32134468,81.669,81.642,12.24859753]
[1772306491669,4.32134468,81.669,81.643,4.29644009]
[1772306493047,12.24445039,81.67,81.642,12.24859753]
[1772306493048,4.32134468,81.667,81.642,12.24859753]
[1772306494647,4.32134468,81.665,81.636,12.24949777]
[1772306495762,4.32134468,81.665,81.64,16.05686828]
[1772306495966,4.32134468,81.672,81.641,4.29644009]
[1772306496369,4.32134468,81.697,81.651,4.29644009]
[1772306496552,16.56169622,81.697,81.663,4.29644009]
[1772306496742,4.32134468,81.696,81.663,4.29644009]
[1772306497648,4.32134468,81.689,81.64,16.05686828]
[1772306498062,4.32134468,81.689,81.641,4.29644009]
[1772306499576,4.32134468,81.687,81.651,4.29644009]
[1772306501681,4.32134468,81.685,81.652,12.24709743]
[1772306503656,4.32134468,81.683,81.644,12.24829748]
[1772306504776,4.32134468,81.683,81.644,42.86904119]
[1772306505156,4.32134468,81.683,81.644,47.34091173]
[1772306505764,4.09029854,81.681,81.644,47.34091173]
[1772306506475,4.09029854,81.681,81.644,42.86904119]
[1772306508875,4.31392348,81.679,81.644,46.9695893]
[1772306509455,4.31392348,81.679,81.645,4.10054811]
[1772306511978,4.31392348,81.677,81.65,20.15120754]
[1772306512190,4.31392348,81.677,81.651,4.10054811]
[1772306514176,4.31392348,81.677,81.652,12.24709743]
[1772306515978,4.31392348,81.677,81.65,5.9927063]
[1772306517176,4.31392348,81.677,81.651,12.24724743]
[1772306519285,4.31392348,81.692,81.66,5.9927063]
[1772306519671,4.31392348,81.691,81.653,42.86431606]
[1772306520067,4.31392348,81.689,81.644,16.34884559]
[1772306520364,4.31392348,81.689,81.65,5.9927063]
[1772306520771,4.31392348,81.689,81.651,4.10054811]
[1772306521464,4.31392348,81.687,81.652,16.34764554]
[1772306522280,4.31392348,81.687,81.652,12.24709743]
[1772306522980,4.31392348,81.687,81.642,4.10054811]
[1772306523778,4.31392348,81.685,81.644,4.10054811]
[1772306524205,4.31392348,81.699,81.661,4.10054811]
[1772306525077,4.31392348,81.697,81.661,4.10054811]
[1772306525280,4.50137968,81.698,81.671,4.10054811]
[1772306525685,4.31392348,81.697,81.672,12.24409834]
[1772306526069,4.31392348,81.697,81.673,4.10054811]
[1772306526771,4.31392348,81.697,81.672,12.24409834]
[1772306527486,4.31392348,81.695,81.672,12.24409834]
[1772306528489,4.31392348,81.693,81.661,46.96029736]
[1772306528786,4.31392348,81.693,81.662,4.10054811]
[1772306530784,4.31392348,81.693,81.661,42.85974925]
[1772306530785,4.31392348,81.693,81.664,4.10054811]
[1772306531671,4.31392348,81.691,81.664,4.10054811]
[1772306533575,4.31392348,81.679,81.641,4.10054811]
[1772306534089,4.31392348,81.679,81.65,5.9927063]
[1772306534281,4.31392348,81.686,81.651,4.10054811]
[1772306534476,4.31392348,81.684,81.651,4.10054811]
[1772306534680,4.31392348,81.683,81.651,4.10054811]
[1772306535878,4.31392348,81.681,81.644,4.10054811]
[1772306536177,4.31392348,81.679,81.644,4.10054811]
[1772306536385,4.31392348,81.679,81.643,12.24841075]
[1772306536689,4.31392348,81.679,81.644,4.1470192]
[1772306538385,4.05449571,81.677,81.645,12.24814746]
[1772306538982,3.60110374,81.681,81.651,4.1470192]
[1772306539182,3.60110374,81.681,81.661,4.1470192]
[1772306539775,3.60110374,81.681,81.645,42.86851612]
[1772306539776,4.05449571,81.7,81.671,4.1470192]
[1772306539972,4.05449571,81.707,81.671,4.1470192]
[1772306540176,4.05449571,81.707,81.681,4.1470192]
[1772306540376,4.05449571,81.707,81.68,5.9927063]
[1772306540377,2.16066225,81.708,81.683,4.1470192]
[1772306540887,4.05449571,81.706,81.683,4.1470192]
[1772306541594,4.05449571,81.706,81.676,12.24336651]
[1772306542594,4.05449571,81.704,81.671,12.24424826]
[1772306542781,4.05449571,81.699,81.661,4.1470192]
[1772306543398,4.05449571,81.699,81.662,12.2455977]
[1772306543700,4.05449571,81.699,81.662,42.85959196]
[1772306544783,4.05449571,81.697,81.662,42.85959196]
[1772306545699,4.05449571,81.697,81.663,4.1470192]
[1772306547380,4.05449571,81.689,81.65,10.1397255]
[1772306548504,4.05449571,81.687,81.651,12.24724743]
[1772306548883,4.05449571,81.669,81.62,10.1397255]
[1772306549087,4.05449571,81.659,81.621,12.25174893]
[1772306549599,4.05449571,81.659,81.621,16.39876813]
[1772306551008,4.05449571,81.657,81.621,47.02814047]
[1772306551208,4.05449571,81.657,81.622,4.1470192]
[1772306552107,4.05449571,81.665,81.631,4.1470192]
[1772306553095,4.05449571,81.665,81.633,4.1470192]
[1772306554511,4.05449571,81.663,81.634,12.24979787]
[1772306555090,4.05449571,81.672,81.635,4.1470192]
[1772306555294,2.16066225,81.678,81.641,4.1470192]
[1772306555493,12.24350004,81.676,81.641,4.1470192]
[1772306555786,4.05449571,81.675,81.641,4.1470192]
[1772306556592,2.16066225,81.678,81.642,16.39561673]
[1772306556593,4.05449571,81.673,81.642,16.39561673]
[1772306557696,4.05449571,81.673,81.643,4.1470192]
[1772306559820,4.05449571,81.671,81.644,12.24829748]
[1772306561996,4.05449571,81.671,81.644,16.39531668]
[1772306562200,4.05449571,81.649,81.617,16.39927026]
[1772306562493,4.05449571,81.649,81.618,4.1470192]
[1772306566826,4.23680527,81.648,81.619,12.25204915]
[1772306568317,4.27291289,81.639,81.6,5.99804091]
[1772306570103,4.27291289,81.638,81.603,0.45417421]
[1772306572726,4.27291289,81.636,81.604,12.70847546]
[1772306573134,4.27291289,81.636,81.604,12.25430125]
[1772306573526,4.27291289,81.619,81.582,0.45417421]
[1772306573839,4.27291289,81.619,81.581,12.25775609]
[1772306574046,4.27291289,81.609,81.581,12.25775609]
[1772306574535,4.27291289,81.609,81.58,1.02]
[1772306574739,153.11684651,81.637,81.58,1.02]
[1772306574740,4.27291289,81.597,81.58,1.02]
[1772306575235,4.27291289,81.589,81.55,0.2]
[1772306575536,4.23680527,81.569,81.55,0.2]
[1772306576752,4.23680527,81.569,81.55,12.46231767]
[1772306576926,4.23680527,81.576,81.55,15.07224496]
[1772306577239,4.23680527,81.592,81.561,2.10992729]
[1772306578536,4.23680527,81.592,81.562,12.26061155]
[1772306578841,2.15626225,81.599,81.57,5.99804091]
[1772306579141,4.23680527,81.617,81.581,2.10992729]
[1772306579731,16.48915465,81.617,81.581,2.10992729]
[1772306579929,4.23680527,81.616,81.581,2.10992729]
[1772306581022,4.23680527,81.614,81.582,12.25760584]
[1772306581223,4.23680527,81.609,81.565,2.10992729]
[1772306581539,4.23680527,81.609,81.567,2.10992729]
[1772306582132,4.23680527,81.609,81.571,2.10992729]
[1772306582729,4.23680527,81.609,81.58,8.1079682]
[1772306582931,4.23680527,81.609,81.581,2.10992729]
[1772306583133,4.23680527,81.619,81.581,2.10992729]
[1772306583337,4.23680527,81.609,81.582,12.25760584]
[1772306583522,4.23680527,81.609,81.582,14.36753313]
[1772306583723,4.23680527,81.609,81.582,45.01154774]
[1772306583929,4.23680527,81.609,81.583,2.10992729]
[1772306585343,4.23680527,81.609,81.581,2.10992729]
[1772306585547,4.23680527,81.628,81.591,2.10992729]
[1772306585948,4.23680527,81.628,81.6,5.99804091]
[1772306586245,4.23680527,81.654,81.621,2.10992729]
[1772306587327,4.23680527,81.654,81.623,2.10992729]
[1772306588151,4.23680527,81.654,81.63,5.99804091]
[1772306588446,4.23680527,81.661,81.631,2.10992729]
[1772306589350,4.23680527,81.659,81.622,42.88059591]
[1772306589755,5.99804091,81.68,81.618,12.25216515]
[1772306589756,4.23680527,81.649,81.618,12.25216515]
[1772306591771,4.23680527,81.649,81.611,42.88636354]
[1772306592650,4.23680527,81.649,81.611,44.99629083]
[1772306593439,4.23680527,81.647,81.611,12.25325017]
[1772306593658,4.23680527,81.639,81.611,12.25325017]
[1772306594664,4.23680527,81.639,81.601,42.89139644]
[1772306595253,4.23680527,81.637,81.601,42.89139644]
[1772306595857,4.23680527,81.637,81.602,2.10992729]
[1772306596666,4.23680527,81.637,81.603,45.00050728]
[1772306596958,4.45695318,81.646,81.611,2.10992729]
[1772306598568,4.45695318,81.646,81.618,2.10992729]
[1772306598870,4.45695318,81.646,81.619,12.25204915]
[1772306599238,4.45695318,81.674,81.631,2.10992729]
[1772306599642,4.45695318,81.674,81.64,5.99804091]
[1772306600366,4.45695318,81.674,81.62,1.2251899]
[1772306600367,4.45695318,81.659,81.621,2.10992729]
[1772306601255,4.45695318,81.659,81.622,44.9905232]
[1772306601456,4.45695318,81.659,81.622,42.88059591]
[1772306601662,4.45695318,81.659,81.623,2.10992729]
[1772306602860,4.45695318,81.659,81.624,14.36122592]
[1772306605573,4.45695318,81.657,81.624,14.36122592]
[1772306605775,4.45695318,81.657,81.625,0.4]
[1772306606473,4.45695318,81.649,81.61,5.99804091]
[1772306606661,4.45695318,81.649,81.612,2.10992729]
[1772306608651,4.45695318,81.649,81.614,2.10992729]
[1772306610167,4.45695318,81.649,81.615,42.88427371]
[1772306610473,4.45695318,81.653,81.621,2.10992729]
[1772306610858,4.45695318,81.651,81.621,2.10992729]
[1772306611850,4.45695318,81.651,81.621,2.50992729]
[1772306613958,4.45695318,81.651,81.623,2.10992729]
[1772306615558,16.70425501,81.651,81.623,2.10992729]
[1772306615859,4.45695318,81.649,81.613,30.63200777]
[1772306616065,4.45695318,81.647,81.613,30.63200777]
[1772306617468,4.45695318,81.647,81.614,12.25279976]
[1772306618562,4.45695318,81.645,81.613,32.74193506]
[1772306618880,4.45695318,81.645,81.614,2.10992729]
[1772306619562,4.45695318,81.643,81.608,2.10992729]
[1772306620379,4.45695318,81.643,81.621,2.10992729]
[1772306621670,4.45695318,81.643,81.622,12.25159883]
[1772306622367,5.99804091,81.66,81.623,4.36328257]
[1772306622562,12.24604758,81.659,81.623,4.36328257]
[1772306623179,12.24555377,81.663,81.623,4.36328257]
[1772306623568,42.85591839,81.669,81.624,12.25129863]
[1772306623766,5.99582903,81.66,81.625,4.36328257]
[1772306624272,4.16417406,81.659,81.625,4.36328257]
[1772306626170,4.16417406,81.657,81.626,16.59891231]
[1772306626374,4.16417406,81.657,81.627,4.41504135]
[1772306628273,4.11984638,81.655,81.628,12.25069828]
[1772306630772,4.11984638,81.655,81.628,16.66573963]
[1772306632676,4.11984638,81.653,81.628,16.66573963]
[1772306633591,4.11984638,81.653,81.628,4.41504135]
[1772306633788,4.11984638,81.653,81.629,12.25054821]
[1772306634990,4.11984638,81.651,81.629,12.25054821]
[1772306638094,4.11984638,81.651,81.629,9.75054821]
[1772306640298,61.21935977,81.674,81.621,0.4]
[1772306640299,4.11984638,81.689,81.641,4.41504135]
[1772306641397,4.11984638,81.679,81.636,1.91504135]
[1772306642491,4.11984638,81.677,81.637,12.24934772]
[1772306643482,4.11984638,81.675,81.64,4.06688047]
[1772306643879,4.11984638,81.675,81.64,10.0627095]
[1772306644333,4.11984638,81.675,81.641,4.06688047]
[1772306645701,4.11984638,81.675,81.642,12.24859753]
[1772306645886,4.11984638,81.675,81.643,4.06688047]
[1772306647332,4.11984638,81.673,81.643,4.06688047]
[1772306647608,4.11984638,81.673,81.638,12.24908715]
[1772306647792,4.11984638,81.659,81.626,16.31787892]
[1772306648308,4.11984638,81.659,81.627,4.06688047]
[1772306649715,4.11984638,81.659,81.631,4.06688047]
[1772306650712,4.11984638,81.658,81.628,12.25069828]
[1772306651835,4.11984638,81.656,81.628,12.25069828]
[1772306653114,12.24664748,81.655,81.628,12.25069828]
[1772306653317,4.11984638,81.654,81.628,12.25069828]
[1772306653697,4.11984638,81.654,81.629,4.06688047]
[1772306655320,4.11984638,81.659,81.631,4.06688047]
[1772306655616,4.11984638,81.665,81.641,4.06688047]
[1772306655995,4.11984638,81.665,81.636,4.06688047]
[1772306656620,4.11984638,81.665,81.63,16.3172786]
[1772306656800,4.09168924,81.659,81.63,12.25039813]
[1772306657402,4.09168924,81.657,81.626,4.06688047]
[1772306660020,4.09168924,81.655,81.627,16.31772884]
[1772306660223,4.09168924,81.655,81.628,4.06688047]
[1772306661114,4.09168924,81.655,81.622,12.25159883]
[1772306661319,4.09168924,81.655,81.623,4.06688047]
[1772306661723,4.09168924,81.655,81.622,12.25159883]
[1772306661922,4.09168924,81.639,81.603,4.06688047]
[1772306662230,4.09168924,81.637,81.605,4.06688047]
[1772306663606,4.09168924,81.637,81.611,4.06688047]
[1772306664222,4.09168924,81.637,81.613,4.06688047]
[1772306666841,16.34118701,81.636,81.614,16.31968023]
[1772306667225,4.09168924,81.635,81.615,4.06688047]
[1772306667426,4.09168924,81.641,81.615,4.06688047]
[1772306667822,4.09168924,81.64,81.615,4.06688047]
[1772306668906,16.34073687,81.639,81.617,4.06688047]
[1772306669308,4.09168924,81.66,81.631,4.06688047]
[1772306669720,4.09168924,81.66,81.641,4.06688047]
[1772306670528,4.09168924,81.66,81.642,16.315478]
[1772306672029,4.09168924,81.66,81.643,4.06688047]
[1772306672225,4.09168924,81.67,81.643,4.06688047]
[1772306672427,4.09168924,81.67,81.651,4.06688047]
[1772306672634,4.09168924,81.67,81.652,16.3139779]
[1772306672822,4.09168924,81.67,81.653,4.06688047]
[1772306673013,4.09168924,81.67,81.652,12.24709743]
[1772306677733,4.09168924,81.67,81.649,12.24754742]
[1772306678531,4.09168924,81.67,81.649,16.31442789]
[1772306678725,4.09168924,81.67,81.65,4.06688047]
[1772306678934,4.09168924,81.675,81.65,4.06688047]
[1772306680937,4.09168924,81.674,81.651,12.24724743]
[1772306683137,4.09168924,81.672,81.651,12.24724743]
[1772306684229,5.99361692,81.66,81.645,0.4]
[1772306684538,4.44837796,81.659,81.628,12.25066171]
[1772306685040,4.44837796,81.647,81.62,12.25189904]
[1772306685626,4.44837796,81.639,81.611,4.36016264]
[1772306685929,4.44837796,81.639,81.611,12.25324211]
[1772306686116,4.44837796,81.639,81.612,4.36016264]
[1772306686722,12.24769743,81.648,81.607,4.2074629]
[1772306686723,4.21735919,81.629,81.607,4.2074629]
[1772306686926,4.21735919,81.629,81.595,4.2074629]
[1772306687139,4.21735919,81.627,81.595,4.2074629]
[1772306688740,4.21735919,81.625,81.597,4.2074629]
[1772306689942,4.21735919,81.619,81.586,4.2074629]
[1772306690144,4.21735919,81.599,81.564,12.26031092]
[1772306690322,4.21735919,81.599,81.564,16.46777382]
[1772306690642,4.21735919,81.597,81.565,4.2074629]
[1772306691143,4.21735919,81.597,81.564,12.26031092]
[1772306691524,4.21735919,81.589,81.553,4.2074629]
[1772306691820,4.21735919,81.589,81.551,30.65563149]
[1772306691821,4.21735919,81.569,81.55,0.2]
[1772306692639,4.21735919,81.567,81.55,0.2]
[1772306694533,4.21735919,81.574,81.551,4.2074629]
[1772306694854,5.99361692,81.58,81.55,0.2]
[1772306694855,4.21735919,81.569,81.55,0.2]
[1772306696533,4.21735919,81.567,81.55,0.2]
[1772306697047,30.6464769,81.576,81.552,4.2074629]
[1772306697048,4.21735919,81.576,81.552,4.2074629]
[1772306697354,4.21735919,81.582,81.552,4.2074629]
[1772306698634,4.21735919,81.579,81.552,4.2074629]
[1772306699036,4.21735919,81.579,81.553,12.26196461]
[1772306699438,4.21735919,81.569,81.55,0.2]
[1772306701549,4.21735919,81.579,81.552,4.2074629]
[1772306701927,5.99361692,81.6,81.551,12.26226533]
[1772306701928,4.21735919,81.601,81.571,4.2074629]
[1772306703027,4.21735919,81.599,81.571,4.2074629]
[1772306703227,4.21735919,81.599,81.561,4.2074629]
[1772306703426,4.21735919,81.597,81.556,4.2074629]
[1772306703655,4.21735919,81.597,81.561,4.2074629]
[1772306704633,4.21735919,81.595,81.562,16.46807445]
[1772306704949,4.21735919,81.595,81.563,4.2074629]
[1772306705748,4.21735919,81.595,81.558,12.26115358]
[1772306706336,4.21735919,81.595,81.558,16.46861648]
[1772306706851,4.21735919,81.593,81.559,4.2074629]
[1772306708152,4.21735919,81.591,81.56,16.46837511]
[1772306709750,4.21735919,81.589,81.553,16.46941638]
[1772306709951,4.21735919,81.589,81.55,0.2]
[1772306710652,42.89846545,81.588,81.55,0.2]
[1772306710857,4.21735919,81.587,81.551,12.26226533]
[1772306712553,4.21735919,81.585,81.551,12.26226533]
[1772306712856,4.21735919,81.585,81.552,4.2074629]
[1772306713231,4.21735919,81.585,81.551,12.26226533]
[1772306713450,4.21735919,81.579,81.55,0.2]
[1772306713953,4.21735919,81.579,81.55,12.4623528]
[1772306714158,4.21735919,81.579,81.55,0.2]
[1772306714541,4.21735919,81.577,81.55,0.2]
[1772306716149,4.21735919,81.569,81.53,0.2]
[1772306716354,4.21735919,81.559,81.53,0.2]
[1772306716557,4.12403422,81.557,81.53,0.2]
[1772306717142,4.12403422,81.557,81.53,12.4653842]
[1772306717755,4.12403422,81.557,81.52,6.19361692]
[1772306717756,4.09178833,81.549,81.52,0.2]
[1772306717957,4.05087044,81.529,81.494,4.21069741]
[1772306718164,4.05087044,81.546,81.511,4.21069741]
[1772306718866,4.05087044,81.544,81.507,12.26875396]
[1772306719455,42.92108651,81.545,81.507,12.26875396]
[1772306719456,4.05087044,81.539,81.507,12.26875396]
[1772306719845,4.05087044,81.569,81.521,4.21069741]
[1772306720360,4.05087044,81.559,81.521,4.21069741]
[1772306720864,4.05087044,81.557,81.523,4.21069741]
[1772306721649,12.26067863,81.562,81.531,4.21069741]
[1772306722156,4.05087044,81.561,81.531,4.21069741]
[1772306722763,4.05087044,81.571,81.533,4.21069741]
[1772306725063,16.31027953,81.57,81.535,4.21069741]
[1772306725869,4.05087044,81.569,81.535,4.21069741]
[1772306726368,12.25970969,81.568,81.537,4.21069741]
[1772306726771,4.05087044,81.567,81.537,4.21069741]
[1772306729077,12.26001029,81.566,81.539,4.21069741]
[1772306729276,16.31088073,81.566,81.539,4.21069741]
[1772306730151,4.05087044,81.565,81.539,4.21069741]
[1772306731380,12.26031092,81.564,81.541,4.21069741]
[1772306732673,12.2576778,81.582,81.551,4.21069741]
[1772306733363,12.2576778,81.582,81.553,4.21069741]
[1772306733565,16.30854824,81.582,81.553,4.21069741]
[1772306734471,12.2576778,81.582,81.553,4.21069741]
[1772306734686,12.25695705,81.587,81.553,4.21069741]
[1772306735357,12.25625375,81.591,81.561,4.21069741]
[1772306737674,4.05087044,81.597,81.563,4.21069741]
[1772306740063,4.05087044,81.595,81.565,4.21069741]
[1772306742165,4.05087044,81.589,81.559,4.21069741]
[1772306742386,4.05087044,81.589,81.552,4.21069741]
[1772306743265,4.05087044,81.587,81.554,4.21069741]
[1772306745182,12.25700487,81.586,81.554,4.21069741]
[1772306745486,4.05087044,81.585,81.556,4.4624603]
[1772306749085,4.05087044,81.583,81.558,4.30778054]
[1772306751280,12.25760584,81.582,81.559,12.26106254]
[1772306751480,16.30847628,81.582,81.56,4.30778054]
[1772306752498,4.05087044,81.581,81.56,4.30778054]
[1772306753979,4.05087044,81.581,81.561,16.56854242]